fUSD/lending_fUSD_20250426
["ID","MTS","AMOUNT","RATE_DAILY","PERIOD"]
[359105613,1745709047512,-585.62,0.00019999,2]
[359105615,1745709047521,-585.62,0.00019999,2]
[359105617,1745709047530,-585.62,0.00019999,2]
[359105619,1745709047539,-585.62,0.00019999,2]
[359105621,1745709047548,-585.62,0.00019999,2]
[359105623,1745709047558,-585.62,0.00019999,2]
[359105625,1745709047567,-585.62,0.00019999,2]
[359105627,1745709047576,-585.62,0.00019999,2]
[359105629,1745709047585,-585.62084152,0.00019999,2]
[359105631,1745709047595,-500.0,0.00019999,2]
[359105633,1745709047605,-500.0,0.00019999,2]
[359105635,1745709047613,-112.85511385,0.00019999,2]
[359105735,1745709049969,-400.0,0.00019776,2]
[359105736,1745709049979,-109.59827358,0.00019776,2]
[359105737,1745709050449,-431.25555034,0.00019701,2]
[359105738,1745709050461,-2529.34444986,0.00019776,2]
[359105739,1745709152808,357.1,0.00016984,2]
[359105740,1745709153227,110.78905319,0.00019248,2]
[359105741,1745709153260,246.31094681,0.00019248,2]
[359105742,1745709362408,209.0,0.00036986,60]
[359105743,1745709413230,294.001463,0.0003698,60]
[359105744,1745709450009,250.0,0.00017,2]
[359105745,1745709451197,300.0,0.00019,2]
[359105746,1745709637667,178.22,0.00015027,2]
[359105747,1745709780082,23900.0,0.00018788,2]
[359105748,1745709828845,1000.0,0.00018788,2]
[359105750,1745709917043,174.5,0.00018781,2]
[359105753,1745710042545,150.0,0.00018776,7]
[359105755,1745710108904,1643.49,0.00018736,2]
[359105791,1745710231672,-154.71,0.00019347,2]
[359105792,1745710231684,-200.0,0.00019473,2]
[359105793,1745710231694,-250.0,0.00019473,2]
[359105794,1745710231704,-200.0,0.00019559,2]
[359105795,1745710231715,-27.15817466,0.00019599,2]
[359105796,1745710231849,-3636.39669445,0.00019599,2]
[359105797,1745710231861,-159.65317865,0.000196,2]
[359105798,1745710231871,-200.0,0.00019618,2]
[359105799,1745710231882,-3663.55486908,0.00019632,2]
[359105800,1745710231892,-300.0,0.00019635,2]
[359105801,1745710231903,-1200.0,0.00019636,2]
[359105802,1745710231914,-300.0,0.00019665,2]
[359105803,1745710231924,-3663.55486908,0.00019666,2]
[359105804,1745710231935,-1698.63728026,0.00019674,2]
[359105805,1745710231945,-206.19772136,0.00019674,2]
[359105806,1745710231956,-3313.03291565,0.00019675,2]
[359105808,1745710231966,-54945.978,0.00019675,2]
[359105810,1745710231977,-11900.1053,0.00019676,2]
[359105812,1745710231987,-1076.43209094,0.00019676,2]
[359105814,1745710231999,-12072.28020906,0.00019676,2]
[359105816,1745710232010,-11486.4002,0.00019676,2]
[359105818,1745710232019,-40128.2663,0.00019676,2]
[359105820,1745710232029,-10277.79738144,0.00019694,2]
[359105822,1745710232039,-14104.62020458,0.00019696,2]
[359105825,1745710232057,-1091.82057194,0.00019696,2]
[359105830,1745710232103,-2510.60206527,0.00019696,2]
[359105861,1745710237784,-43417.73731858,0.00019696,2]
[359105862,1745710237795,-188.6429326,0.00019699,2]
[359105863,1745710237806,-500.0,0.00019699,2]
[359105864,1745710237816,-183.0777767,0.00019699,2]
[359105865,1745710237827,-500.0,0.00019699,2]
[359105866,1745710237837,-194.59978498,0.00019699,2]
[359105867,1745710237847,-204.41218982,0.00019699,2]
[359105868,1745710237859,-9566.605811,0.00019699,2]
[359105869,1745710237868,-1850.63,0.00019699,2]
[359105870,1745710237878,-207.751238,0.00019699,2]
[359105871,1745710237889,-578.01,0.00019699,2]
[359105872,1745710237898,-400.0,0.00019699,2]
[359105873,1745710237909,-400.0,0.00019699,2]
[359105874,1745710237925,-202.565733,0.00019699,2]
[359105875,1745710237935,-732.0,0.00019699,2]
[359105876,1745710237946,-400.0,0.00019699,2]
[359105877,1745710237956,-400.0,0.00019699,2]
[359105878,1745710237965,-400.0,0.00019699,2]
[359105879,1745710237977,-400.0,0.00019699,2]
[359105880,1745710237987,-2270.77,0.00019699,2]
[359105881,1745710237996,-558.58,0.00019699,2]
[359105882,1745710238006,-400.0,0.00019699,2]
[359105883,1745710238016,-400.0,0.00019699,2]
[359105884,1745710238026,-400.0,0.00019699,2]
[359105885,1745710238036,-400.0,0.00019699,2]
[359105886,1745710238045,-400.0,0.00019699,2]
[359105887,1745710238055,-400.0,0.00019699,2]
[359105888,1745710238068,-400.0,0.00019699,2]
[359105889,1745710238077,-245.51294223,0.00019699,2]
[359105890,1745710238087,-400.0,0.00019699,2]
[359105891,1745710238097,-406.97,0.00019699,2]
[359105892,1745710238107,-534.74,0.00019699,2]
[359105893,1745710238117,-400.0,0.00019699,2]
[359105895,1745710238127,-578.17,0.00019699,2]
[359105896,1745710238138,-400.0,0.00019699,2]
[359105898,1745710238148,-413.77,0.00019699,2]
[359105900,1745710238158,-626.62,0.00019699,2]
[359105902,1745710238167,-400.0,0.00019699,2]
[359105904,1745710238177,-400.0,0.00019699,2]
[359105906,1745710238187,-495.98,0.00019699,2]
[359105909,1745710238198,-400.0,0.00019699,2]
[359105911,1745710238207,-737.0,0.00019699,2]
[359105913,1745710238217,-479.06,0.00019699,2]
[359105915,1745710238227,-400.0,0.00019699,2]
[359105917,1745710238237,-545.7,0.00019699,2]
[359105919,1745710238246,-400.0,0.00019699,2]
[359105921,1745710238256,-483.98,0.00019699,2]
[359105923,1745710238266,-400.0,0.00019699,2]
[359105925,1745710238276,-400.0,0.00019699,2]
[359105927,1745710238285,-533.12,0.00019699,2]
[359105929,1745710238295,-483.43,0.00019699,2]
[359105931,1745710238304,-400.0,0.00019699,2]
[359105933,1745710238314,-617.28,0.00019699,2]
[359105935,1745710238324,-400.0,0.00019699,2]
[359105936,1745710238333,-400.0,0.00019699,2]
[359105938,1745710238342,-400.0,0.00019699,2]
[359105940,1745710238351,-400.0,0.00019699,2]
[359105942,1745710238361,-400.81,0.00019699,2]
[359105944,1745710238371,-400.0,0.00019699,2]
[359105946,1745710238381,-400.0,0.00019699,2]
[359105949,1745710238391,-500.0,0.00019699,2]
[359105951,1745710238401,-755.69,0.00019699,2]
[359105953,1745710238411,-200.0,0.00019699,2]
[359105955,1745710238421,-400.0,0.00019699,2]
[359105957,1745710238431,-5470.68,0.00019699,2]
[359105959,1745710238442,-400.0,0.00019699,2]
[359105961,1745710238452,-400.0,0.00019699,2]
[359105963,1745710238461,-400.0,0.00019699,2]
[359105965,1745710238471,-272.46834883,0.00019699,2]
[359105967,1745710238481,-473.32,0.00019699,2]
[359105969,1745710238490,-400.0,0.00019699,2]
[359105971,1745710238501,-511.99031012,0.00019699,2]
[359105973,1745710238512,-400.0,0.00019699,2]
[359105974,1745710238522,-505.87036558,0.00019699,2]
[359105976,1745710238533,-400.0,0.00019699,2]
[359105978,1745710238544,-400.0,0.00019699,2]
[359105980,1745710238553,-400.0,0.00019699,2]
[359105982,1745710238563,-400.0,0.00019699,2]
[359105984,1745710238572,-400.0,0.00019699,2]
[359105986,1745710238582,-400.0,0.00019699,2]
[359105988,1745710238592,-400.0,0.00019699,2]
[359105990,1745710238601,-400.0,0.00019699,2]
[359105992,1745710238611,-400.0,0.00019699,2]
[359105994,1745710238620,-400.0,0.00019699,2]
[359105996,1745710238631,-200.0,0.00019699,2]
[359105998,1745710238641,-400.0,0.00019699,2]
[359106000,1745710238650,-460.06,0.00019699,2]
[359106002,1745710238660,-659.99,0.00019699,2]
[359106005,1745710238670,-400.0,0.00019699,2]
[359106007,1745710238680,-400.0,0.00019699,2]
[359106009,1745710238690,-400.0,0.00019699,2]
[359106011,1745710238700,-1698.63728024,0.00019699,2]
[359106012,1745710238710,-3663.55486908,0.00019699,2]
[359106015,1745710238719,-1536.45,0.000197,2]
[359106017,1745710238729,-150.99,0.000197,2]
[359106019,1745710238739,-9999.99,0.000197,2]
[359106020,1745710238748,-64017.06,0.000197,2]
[359106022,1745710238758,-499.99,0.000197,2]
[359106024,1745710238767,-1128.05,0.000197,2]
[359106026,1745710238777,-362.24,0.000197,2]
[359106029,1745710238787,-1027.3,0.000197,2]
[359106031,1745710238796,-434.64,0.000197,2]
[359106033,1745710238806,-9999.99,0.000197,2]
[359106035,1745710238815,-2842.64,0.000197,2]
[359106037,1745710238825,-3958.85,0.000197,2]
[359106039,1745710238835,-10277.79738144,0.00019716,2]
[359106041,1745710238845,-27666.815216,0.00019721,2]
[359106043,1745710238855,-1698.63728024,0.00019724,2]
[359106045,1745710238864,-2373.26083823,0.00019725,2]
[359106047,1745710238874,-2373.26083823,0.00019727,2]
[359106049,1745710238884,-10600.6975972,0.00019731,2]
[359106051,1745710238894,-3663.55486908,0.00019733,2]
[359106053,1745710238903,-1698.63728024,0.00019749,2]
[359106055,1745710238912,-189.37180716,0.00019763,2]
[359106057,1745710238922,-207.4,0.00019763,2]
[359106059,1745710238932,-252.44,0.00019765,2]
[359106061,1745710238942,-3663.55486908,0.00019766,2]
[359106063,1745710238951,-504.05263074,0.00019773,2]
[359106065,1745710238961,-500.0,0.00019773,2]
[359106067,1745710238971,-500.0,0.00019773,2]
[359106069,1745710238980,-400.0,0.00019774,2]
[359106071,1745710238990,-394.31605965,0.00019774,2]
[359106073,1745710238999,-400.0,0.00019774,2]
[359106075,1745710239009,-453.11,0.00019774,2]
[359106077,1745710239018,-400.0,0.00019774,2]
[359106079,1745710239027,-400.0,0.00019774,2]
[359106081,1745710239038,-502.74,0.00019774,2]
[359106083,1745710239048,-350.49689088,0.00019774,2]
[359106085,1745710239058,-400.0,0.00019774,2]
[359106087,1745710239070,-995.26,0.00019774,2]
[359106089,1745710239081,-400.0,0.00019774,2]
[359106091,1745710239091,-400.0,0.00019774,2]
[359106093,1745710239100,-444.83,0.00019774,2]
[359106094,1745710239109,-400.0,0.00019774,2]
[359106096,1745710239119,-449.59,0.00019774,2]
[359106099,1745710239129,-415.23,0.00019774,2]
[359106101,1745710239139,-400.0,0.00019774,2]
[359106103,1745710239148,-404.61,0.00019774,2]
[359106105,1745710239159,-416.98,0.00019774,2]
[359106106,1745710239169,-400.0,0.00019774,2]
[359106108,1745710239180,-465.01,0.00019774,2]
[359106110,1745710239190,-400.0,0.00019774,2]
[359106113,1745710239200,-400.0,0.00019774,2]
[359106115,1745710239210,-400.0,0.00019774,2]
[359106117,1745710239219,-400.0,0.00019774,2]
[359106118,1745710239229,-434.56,0.00019774,2]
[359106120,1745710239238,-400.0,0.00019774,2]
[359106123,1745710239249,-902.01,0.00019774,2]
[359106125,1745710239259,-482.3,0.00019774,2]
[359106127,1745710239270,-400.0,0.00019774,2]
[359106129,1745710239279,-400.0,0.00019774,2]
[359106131,1745710239289,-822.59,0.00019774,2]
[359106133,1745710239299,-503.66766536,0.00019774,2]
[359106135,1745710239310,-400.0,0.00019774,2]
[359106137,1745710239320,-400.0,0.00019774,2]
[359106139,1745710239330,-400.0,0.00019774,2]
[359106141,1745710239340,-430.71,0.00019774,2]
[359106143,1745710239350,-400.0,0.00019774,2]
[359106145,1745710239361,-400.0,0.00019774,2]
[359106147,1745710239370,-400.0,0.00019774,2]
[359106149,1745710239381,-400.0,0.00019774,2]
[359106151,1745710239391,-400.0,0.00019774,2]
[359106153,1745710239400,-673.47,0.00019774,2]
[359106155,1745710239410,-422.53,0.00019774,2]
[359106157,1745710239421,-400.0,0.00019774,2]
[359106159,1745710239430,-400.0,0.00019774,2]
[359106161,1745710239441,-625.69,0.00019774,2]
[359106163,1745710239450,-400.0,0.00019774,2]
[359106165,1745710239459,-416.06,0.00019774,2]
[359106167,1745710239468,-504.55,0.00019774,2]
[359106169,1745710239478,-435.73,0.00019774,2]
[359106171,1745710239487,-400.0,0.00019774,2]
[359106173,1745710239496,-400.0,0.00019774,2]
[359106175,1745710239506,-400.0,0.00019774,2]
[359106176,1745710239515,-400.0,0.00019774,2]
[359106178,1745710239525,-400.0,0.00019774,2]
[359106181,1745710239535,-592.36,0.00019774,2]
[359106182,1745710239545,-400.0,0.00019774,2]
[359106185,1745710239554,-407.76,0.00019774,2]
[359106186,1745710239564,-400.0,0.00019774,2]
[359106188,1745710239573,-400.0,0.00019774,2]
[359106190,1745710239583,-489.44,0.00019774,2]
[359106192,1745710239592,-400.0,0.00019774,2]
[359106194,1745710239602,-400.0,0.00019774,2]
[359106196,1745710239611,-400.0,0.00019774,2]
[359106198,1745710239621,-400.0,0.00019774,2]
[359106200,1745710239631,-470.45,0.00019774,2]
[359106202,1745710239641,-400.0,0.00019774,2]
[359106204,1745710239650,-400.0,0.00019774,2]
[359106206,1745710239659,-400.0,0.00019774,2]
[359106208,1745710239669,-573.61,0.00019774,2]
[359106210,1745710239678,-400.0,0.00019774,2]
[359106212,1745710239688,-400.0,0.00019774,2]
[359106214,1745710239697,-400.0,0.00019774,2]
[359106216,1745710239707,-520.36,0.00019774,2]
[359106218,1745710239716,-400.0,0.00019774,2]
[359106220,1745710239726,-300.000001,0.00019774,2]
[359106222,1745710239735,-400.0,0.00019774,2]
[359106224,1745710239745,-400.0,0.00019774,2]
[359106226,1745710239754,-400.0,0.00019774,2]
[359106228,1745710239763,-400.0,0.00019774,2]
[359106230,1745710239773,-496.04,0.00019774,2]
[359106232,1745710239782,-400.0,0.00019774,2]
[359106234,1745710239792,-437.34,0.00019774,2]
[359106236,1745710239801,-400.0,0.00019774,2]
[359106238,1745710239811,-500.0,0.00019774,2]
[359106240,1745710239820,-453.68,0.00019774,2]
[359106242,1745710239830,-400.0,0.00019774,2]
[359106245,1745710239841,-500.0,0.00019774,2]
[359106247,1745710239851,-500.0,0.00019774,2]
[359106249,1745710239860,-522.78,0.00019774,2]
[359106251,1745710239869,-567.43,0.00019774,2]
[359106253,1745710239879,-500.0,0.00019774,2]
[359106255,1745710239889,-400.0,0.00019774,2]
[359106257,1745710239898,-400.0,0.00019774,2]
[359106259,1745710239908,-92387.5,0.00019774,2]
[359106261,1745710239918,-400.0,0.00019774,2]
[359106263,1745710239928,-419.6,0.00019774,2]
[359106265,1745710239937,-400.0,0.00019774,2]
[359106267,1745710239947,-1376.53,0.00019774,2]
[359106269,1745710239956,-844.79,0.00019774,2]
[359106271,1745710239965,-400.0,0.00019774,2]
[359106273,1745710239975,-754.62,0.00019774,2]
[359106275,1745710239985,-400.0,0.00019774,2]
[359106276,1745710239995,-500.03,0.00019774,2]
[359106278,1745710240005,-400.0,0.00019774,2]
[359106281,1745710240015,-400.0,0.00019774,2]
[359106283,1745710240026,-400.0,0.00019774,2]
[359106285,1745710240036,-565.75,0.00019774,2]
[359106287,1745710240045,-527.17,0.00019774,2]
[359106289,1745710240055,-540.94,0.00019774,2]
[359106291,1745710240065,-550.86,0.00019774,2]
[359106293,1745710240078,-641.98,0.00019774,2]
[359106295,1745710240089,-400.0,0.00019774,2]
[359106296,1745710240099,-782.99,0.00019774,2]
[359106299,1745710240111,-400.0,0.00019774,2]
[359106301,1745710240121,-400.0,0.00019774,2]
[359106303,1745710240131,-400.0,0.00019774,2]
[359106305,1745710240142,-523.12,0.00019774,2]
[359106307,1745710240152,-510.8,0.00019774,2]
[359106309,1745710240162,-400.0,0.00019774,2]
[359106311,1745710240172,-1176.41,0.00019774,2]
[359106313,1745710240182,-520.73,0.00019774,2]
[359106315,1745710240191,-529.38,0.00019774,2]
[359106317,1745710240200,-753.78,0.00019774,2]
[359106319,1745710240210,-400.0,0.00019774,2]
[359106321,1745710240220,-400.0,0.00019774,2]
[359106323,1745710240230,-400.0,0.00019774,2]
[359106325,1745710240240,-2458.47,0.00019774,2]
[359106327,1745710240249,-400.0,0.00019774,2]
[359106329,1745710240258,-894.18,0.00019774,2]
[359106331,1745710240268,-611.52,0.00019774,2]
[359106333,1745710240278,-477.38,0.00019774,2]
[359106335,1745710240288,-823.04,0.00019774,2]
[359106337,1745710240298,-400.0,0.00019774,2]
[359106339,1745710240308,-400.0,0.00019774,2]
[359106341,1745710240317,-670.13,0.00019774,2]
[359106343,1745710240327,-670.13,0.00019774,2]
[359106345,1745710240337,-1698.63728024,0.00019774,2]
[359106347,1745710240347,-206.2795176,0.00019775,2]
[359106349,1745710240357,-400.0,0.00019775,2]
[359106351,1745710240366,-493.7,0.00019775,2]
[359106353,1745710240375,-639.26,0.00019775,2]
[359106355,1745710240385,-506.29297893,0.00019775,2]
[359106357,1745710240394,-400.0,0.00019775,2]
[359106359,1745710240404,-400.0,0.00019775,2]
[359106361,1745710240414,-400.0,0.00019775,2]
[359106363,1745710240423,-533.4333648,0.00019775,2]
[359106365,1745710240434,-250.0,0.00019775,2]
[359106367,1745710240443,-400.0,0.00019775,2]
[359106369,1745710240453,-470.52,0.00019775,2]
[359106371,1745710240462,-400.0,0.00019775,2]
[359106373,1745710240472,-200.0,0.00019775,2]
[359106375,1745710240482,-200.0,0.00019775,2]
[359106377,1745710240491,-400.0,0.00019775,2]
[359106379,1745710240501,-400.0,0.00019775,2]
[359106381,1745710240510,-200.44331616,0.00019775,2]
[359106383,1745710240520,-532.79,0.00019775,2]
[359106385,1745710240530,-869.01,0.00019775,2]
[359106388,1745710240539,-400.0,0.00019775,2]
[359106390,1745710240549,-400.0,0.00019775,2]
[359106392,1745710240558,-400.0,0.00019775,2]
[359106394,1745710240568,-400.0,0.00019775,2]
[359106396,1745710240577,-449.83,0.00019775,2]
[359106398,1745710240587,-400.0,0.00019775,2]
[359106400,1745710240596,-400.0,0.00019775,2]
[359106402,1745710240606,-400.0,0.00019775,2]
[359106404,1745710240615,-200.0,0.00019775,2]
[359106406,1745710240625,-400.0,0.00019775,2]
[359106408,1745710240634,-400.0,0.00019775,2]
[359106410,1745710240644,-200.0,0.00019775,2]
[359106412,1745710240653,-400.0,0.00019775,2]
[359106414,1745710240662,-400.0,0.00019775,2]
[359106416,1745710240672,-400.0,0.00019775,2]
[359106418,1745710240681,-527.54017688,0.00019775,2]
[359106420,1745710240691,-400.0,0.00019775,2]
[359106422,1745710240700,-546.31,0.00019775,2]
[359106424,1745710240709,-400.0,0.00019775,2]
[359106426,1745710240719,-200.0,0.00019775,2]
[359106428,1745710240728,-369.80191009,0.00019775,2]
[359106430,1745710240739,-400.0,0.00019775,2]
[359106432,1745710240748,-400.0,0.00019775,2]
[359106434,1745710240757,-312.01681032,0.00019775,2]
[359106436,1745710240767,-400.0,0.00019775,2]
[359106438,1745710240777,-704.24,0.00019775,2]
[359106440,1745710240787,-200.0,0.00019775,2]
[359106442,1745710240796,-400.0,0.00019775,2]
[359106444,1745710240805,-400.0,0.00019775,2]
[359106446,1745710240815,-400.0,0.00019775,2]
[359106448,1745710240825,-400.0,0.00019775,2]
[359106450,1745710240834,-400.0,0.00019775,2]
[359106452,1745710240843,-400.0,0.00019775,2]
[359106454,1745710240852,-400.0,0.00019775,2]
[359106456,1745710240862,-831.67,0.00019775,2]
[359106458,1745710240871,-400.0,0.00019775,2]
[359106460,1745710240880,-586.45,0.00019775,2]
[359106462,1745710240890,-264.85362062,0.00019775,2]
[359106464,1745710240899,-400.0,0.00019775,2]
[359106466,1745710240908,-400.0,0.00019775,2]
[359106467,1745710240917,-415.23,0.00019775,2]
[359106469,1745710240927,-400.0,0.00019775,2]
[359106471,1745710240936,-626.54,0.00019775,2]
[359106473,1745710240946,-887.12,0.00019775,2]
[359106475,1745710240956,-447.3,0.00019775,2]
[359106477,1745710240967,-676.91,0.00019775,2]
[359106479,1745710240976,-400.0,0.00019775,2]
[359106481,1745710240986,-555.82,0.00019775,2]
[359106483,1745710240996,-400.0,0.00019775,2]
[359106485,1745710241007,-400.0,0.00019775,2]
[359106487,1745710241016,-400.0,0.00019775,2]
[359106489,1745710241026,-400.0,0.00019775,2]
[359106491,1745710241035,-400.0,0.00019775,2]
[359106493,1745710241045,-400.0,0.00019775,2]
[359106495,1745710241054,-464.67,0.00019775,2]
[359106497,1745710241066,-400.0,0.00019775,2]
[359106499,1745710241075,-400.0,0.00019775,2]
[359106501,1745710241084,-517.05,0.00019775,2]
[359106503,1745710241094,-713.7,0.00019775,2]
[359106505,1745710241103,-619.65,0.00019775,2]
[359106527,1745710241300,-1206.54,0.00019775,2]
[359106530,1745710241344,-400.0,0.00019775,2]
[359106533,1745710241354,-400.0,0.00019775,2]
[359106535,1745710241363,-400.0,0.00019775,2]
[359106537,1745710241373,-400.0,0.00019775,2]
[359106539,1745710241383,-400.0,0.00019775,2]
[359106541,1745710241392,-400.0,0.00019775,2]
[359106543,1745710241402,-400.0,0.00019775,2]
[359106545,1745710241412,-527.21,0.00019775,2]
[359106547,1745710241422,-400.0,0.00019775,2]
[359106549,1745710241434,-458.03127712,0.00019775,2]
[359106551,1745710241443,-400.0,0.00019775,2]
[359106553,1745710241453,-400.0,0.00019775,2]
[359106555,1745710241463,-400.0,0.00019775,2]
[359106557,1745710241473,-1341.0,0.00019775,2]
[359106559,1745710241482,-400.0,0.00019775,2]
[359106561,1745710241492,-400.0,0.00019775,2]
[359106563,1745710241502,-400.0,0.00019775,2]
[359106565,1745710241512,-400.0,0.00019775,2]
[359106567,1745710241521,-500.0,0.00019775,2]
[359106569,1745710241530,-500.0,0.00019775,2]
[359106571,1745710241540,-400.0,0.00019775,2]
[359106573,1745710241550,-400.0,0.00019775,2]
[359106574,1745710241559,-447.63,0.00019775,2]
[359106576,1745710241569,-400.0,0.00019775,2]
[359106578,1745710241578,-464.54,0.00019775,2]
[359106580,1745710241588,-656.75,0.00019775,2]
[359106582,1745710241597,-518.27,0.00019775,2]
[359106584,1745710241607,-400.0,0.00019775,2]
[359106586,1745710241617,-1503.82,0.00019775,2]
[359106588,1745710241628,-443.9,0.00019775,2]
[359106590,1745710241638,-400.0,0.00019775,2]
[359106592,1745710241647,-400.0,0.00019775,2]
[359106594,1745710241657,-400.0,0.00019775,2]
[359106596,1745710241668,-400.0,0.00019775,2]
[359106598,1745710241677,-400.0,0.00019775,2]
[359106599,1745710241687,-515.13,0.00019775,2]
[359106600,1745710241696,-400.0,0.00019775,2]
[359106601,1745710241705,-400.0,0.00019775,2]
[359106602,1745710241715,-400.0,0.00019775,2]
[359106603,1745710241724,-454.45,0.00019775,2]
[359106604,1745710241733,-400.0,0.00019775,2]
[359106605,1745710241742,-400.0,0.00019775,2]
[359106606,1745710241752,-400.0,0.00019775,2]
[359106607,1745710241762,-500.0,0.00019775,2]
[359106608,1745710241771,-400.0,0.00019775,2]
[359106609,1745710241780,-400.0,0.00019775,2]
[359106610,1745710241789,-425.15,0.00019775,2]
[359106611,1745710241799,-400.0,0.00019775,2]
[359106612,1745710241808,-559.81,0.00019775,2]
[359106613,1745710241817,-400.0,0.00019775,2]
[359106614,1745710241827,-504.65,0.00019775,2]
[359106615,1745710241836,-641.03,0.00019775,2]
[359106616,1745710241846,-400.0,0.00019775,2]
[359106618,1745710241855,-426.18,0.00019775,2]
[359106620,1745710241864,-472.06,0.00019775,2]
[359106622,1745710241873,-400.0,0.00019775,2]
[359106624,1745710241883,-400.0,0.00019775,2]
[359106626,1745710241892,-400.0,0.00019775,2]
[359106628,1745710241901,-400.0,0.00019775,2]
[359106630,1745710241911,-400.0,0.00019775,2]
[359106632,1745710241921,-150.50202754,0.00019775,2]
[359106634,1745710241930,-400.0,0.00019775,2]
[359106636,1745710241939,-539.97,0.00019775,2]
[359106638,1745710241948,-400.0,0.00019775,2]
[359106640,1745710241957,-400.0,0.00019775,2]
[359106642,1745710241967,-400.0,0.00019775,2]
[359106644,1745710241977,-400.0,0.00019775,2]
[359106646,1745710241987,-2905.48,0.00019775,2]
[359106648,1745710241996,-589.97,0.00019775,2]
[359106650,1745710242005,-547.58,0.00019775,2]
[359106652,1745710242015,-526.98,0.00019775,2]
[359106654,1745710242024,-400.0,0.00019775,2]
[359106656,1745710242033,-400.0,0.00019775,2]
[359106658,1745710242042,-400.0,0.00019775,2]
[359106660,1745710242051,-400.0,0.00019775,2]
[359106662,1745710242062,-400.0,0.00019775,2]
[359106664,1745710242074,-400.0,0.00019775,2]
[359106666,1745710242084,-648.84,0.00019775,2]
[359106668,1745710242094,-400.0,0.00019775,2]
[359106669,1745710242103,-654.51,0.00019775,2]
[359106671,1745710242114,-500.0,0.00019775,2]
[359106673,1745710242123,-400.0,0.00019775,2]
[359106675,1745710242133,-400.0,0.00019775,2]
[359106677,1745710242143,-400.0,0.00019775,2]
[359106680,1745710242155,-400.0,0.00019775,2]
[359106682,1745710242165,-400.0,0.00019775,2]
[359106683,1745710242174,-454.29,0.00019775,2]
[359106686,1745710242183,-500.0,0.00019775,2]
[359106687,1745710242193,-400.0,0.00019775,2]
[359106689,1745710242202,-400.0,0.00019775,2]
[359106692,1745710242211,-400.0,0.00019775,2]
[359106693,1745710242221,-512.04613896,0.00019775,2]
[359106695,1745710242231,-584.33,0.00019775,2]
[359106697,1745710242241,-400.0,0.00019775,2]
[359106699,1745710242252,-400.0,0.00019775,2]
[359106701,1745710242263,-400.0,0.00019775,2]
[359106703,1745710242274,-400.0,0.00019775,2]
[359106705,1745710242284,-400.0,0.00019775,2]
[359106707,1745710242294,-400.0,0.00019775,2]
[359106709,1745710242304,-415.24,0.00019775,2]
[359106711,1745710242313,-400.0,0.00019775,2]
[359106713,1745710242322,-400.0,0.00019775,2]
[359106715,1745710242332,-400.0,0.00019775,2]
[359106717,1745710242342,-400.0,0.00019775,2]
[359106719,1745710242351,-400.0,0.00019775,2]